Cogmind - Beta 15 @@@ ROGUE MODE // 2025.07.20 @ 08:41:19 Player: shapeshifter Result: Destroyed by S-10 Pest with Light Assault Rifle Performance ------------- Evolutions (2) 1000 Regions Visited (4) 800 Robots Destroyed (57) 285 Value Destroyed (1759) 1759 Prototype IDs (1) 20 Alien Tech Used (0) 0 Bonus (22) 22 TOTAL SCORE: 3886 Bonus ------- High Alert Combat Kills 22 Cogmind --------- Core Integrity 0/550 Matter 300/300 Energy 160/160 System Corruption 0% Temperature Cool (0) Movement Treading (240) Ox1 Location -8/Materials Parts ------- > --- POWER (1) -------- Light Nuclear Core > --- PROPULSION (4) --- Light Treads > --- UTILITY (4) ------ Large Storage Unit > --- WEAPON (2) ------- (None) > --- INVENTORY (15) --- Light Nuclear Core Light Nuclear Core Large Storage Unit Peak State ------------ > --- POWER ------------ Heavy Ion Engine > --- PROPULSION ------- Light Treads Light Treads Light Treads Light Treads > --- UTILITY ---------- Improved Heat Sink Large Storage Unit Large Matter Pod Improved Targeting Computer > --- WEAPON ----------- Pulse Rifle Ion Cannon > --- INVENTORY -------- Light Nuclear Core Light Nuclear Core Light Treads Light Treads Large Storage Unit EM Pulse Gun Beam Rifle Heavy Assault Rifle [Rating: 21] Favorites ----------- Power Ion Engine Engine Ion Engine Power Core Light Nuclear Core Propulsion Light Treads Treads Light Treads Utility Seismic Detector Device Seismic Detector Storage Small Storage Unit Processor Improved Targeting Computer Protection Light Armor Plating Weapon Light Assault Rifle Energy Gun EM Pulse Gun Energy Cannon Ion Cannon Ballistic Gun Light Assault Rifle Launcher Rocket Launcher Build | -11 -10 -9 -9 -8 ------- Run | Yrd Mat Mat Min Mat Slots Evolved 4 | . . 2 . 2 Power . | . . . . . Propulsion 2 | . . 1 . 1 Utility 2 | . . 1 . 1 Weapon . | . . . . . Parts Attached 36 | 8 3 12 1 12 Power 4 | 1 . 2 . 1 Engine 2 | 1 . 1 . . Core 2 | . . 1 . 1 Reactor . | . . . . . Propulsion 13 | 2 3 3 . 5 Treads 13 | 2 3 3 . 5 Leg . | . . . . . Wheel . | . . . . . Hover . | . . . . . Flight . | . . . . . Utility 9 | 3 . 3 1 2 Device 3 | 2 . . . 1 Storage 3 | 1 . 1 1 . Processor 1 | . . . . 1 Hackware . | . . . . . Protection 2 | . . 2 . . Artifact . | . . . . . Weapon 10 | 2 . 4 . 4 Energy Gun 4 | . . 2 . 2 Energy Cannon 1 | . . . . 1 Ballistic Gun 4 | 2 . 2 . . Ballistic Cannon . | . . . . . Launcher 1 | . . . . 1 Special Weapon . | . . . . . Impact Weapon . | . . . . . Slashing Weapon . | . . . . . Piercing Weapon . | . . . . . Special Melee Weapon . | . . . . . Unidentified Prototypes 1 | . . 1 . . Parts Lost 19 | . 1 . 2 16 Power 1 | . . . . 1 Propulsion 7 | . 1 . . 6 Utility 5 | . . . 2 3 Weapon 6 | . . . . 6 Highest Loss Streak 14 | . 1 . 2 14 To Critical Strikes . | . . . . . Average Backups 7 | 4 7 8 11 6 Power 1 | . 1 1 2 1 Propulsion 1 | 1 1 . 3 1 Utility 2 | . 2 3 3 1 Weapon 2 | 1 2 2 3 2 Tool/Special . | . . . . . Unused Backups 13 | . 4 4 1 4 Power 3 | . 1 . . 2 Propulsion 5 | . 2 2 . 1 Utility 3 | . 1 1 . 1 Weapon 2 | . . 1 1 . Tool/Special . | . . . . . Average Slot Usage (%) 95 | . 98 98 91 81 Engine 7 | . 14 2 11 5 Core 3 | . . 8 . 2 Treads 28 | . 26 31 33 26 Device 11 | . 14 11 4 7 Storage 13 | . 14 11 16 15 Processor 1 | . . . . 8 Protection 4 | . . 10 4 . Energy Gun 5 | . . 11 11 5 Ballistic Gun 16 | . 28 10 11 3 Peak Build Rating 21 | 9 8 14 14 21 Average Rating 10 | 6 7 12 12 15 On Entrance 8 | . 7 8 14 13 Naked Turns . | . . . . . Heaviest Build 42 | 13 13 37 37 42 Greatest Support 80 | 40 40 60 60 80 Greatest Overweight (x) 8 | . . . . 8 Average Overweight (x) . | . . . . . Largest Inventory Capacity 15 | 8 8 15 15 15 Average Capacity 11 | 6 8 13 15 15 Most Carried 12 | 6 8 12 12 11 Average Carried 7 | 4 7 8 11 6 Final Capacity 15 | 8 8 15 15 15 Final Carried 12 | 6 8 12 11 3 Class Distribution -------------------- 54% | Mutant 45% | Scavenger-Mutant Dominant Class ---------------- Mutant | -10/Materials Scavenger-Mutant | -9/Materials Mutant | -9/Mines Scavenger-Mutant | -8/Materials Resources | -11 -10 -9 -9 -8 ----------- Run | Yrd Mat Mat Min Mat Matter Collected 1001 | 308 323 247 18 105 Remotely . | . . . . . Salvage Created 2066 | 155 369 780 105 657 Parts 139 | 19 28 52 6 34 Haulers Intercepted 3 | . 2 1 . . Recyclers Shooed 1 | . . . . 1 Parts Field Recycled . | . . . . . Retrieved Matter . | . . . . . Parts Self-Destructed . | . . . . . Prevented . | . . . . . Kills | -11 -10 -9 -9 -8 ------- Run | Yrd Mat Mat Min Mat Combat Hostiles Destroyed 42 | . 9 15 2 16 Guns 28 | . 9 12 2 5 Cannons 3 | . . . . 3 AOE 11 | . . 3 . 8 Classes Destroyed 12 | 3 4 2 . 3 Worker 2 | 1 . . . 1 Builder 2 | . . . . 2 Tunneler 4 | 3 . 1 . . Hauler 3 | . 2 1 . . Recycler 1 | 1 . . . . Watcher 3 | . 2 1 . . Swarmer 7 | . 5 2 . . Grunt 24 | . 4 7 2 11 Brawler 2 | . . . . 2 Duelist 1 | . . 1 . . Protector 1 | . . . . 1 Sentry 7 | . . 5 . 2 Best Kill Streak 5 | 3 5 4 2 5 Combat Bots Only 5 | . 5 4 2 5 Max Kills in Single Turn 3 | 1 1 2 2 3 Gunslinging 1 | . . . 1 . Exploded 2 | . . 1 . 2 Melee . | . . . . . Uniques/NPCs Destroyed . | . . . . . Combat | -11 -10 -9 -9 -8 -------- Run | Yrd Mat Mat Min Mat Hostile Shots Fired 326 | . 53 88 13 172 Missed 95 | . 18 30 6 41 Hits 231 | . 35 58 7 131 Melee 3 | . . 3 . . Projectile 228 | . 35 55 7 131 Critical Strikes 11 | . . 4 . 7 Damage Taken 3467 | . 369 782 95 2221 Core 741 | . 43 143 . 555 Absorbed by Shields . | . . . . . Redirected to Shielding 4 | . . 4 . . Regen/Repaired (Parts) 132 | . . 132 . . Core Remaining (%) 82 | 100 82 . 64 . Volleys Fired 203 | 17 66 65 6 49 Largest 2 | 2 2 2 2 2 Hottest 123 | 40 40 80 63 123 Shots Fired 378 | 34 132 125 12 75 Gun 345 | 34 132 125 12 42 Cannon 20 | . . . . 20 Launcher 13 | . . . . 13 Special . | . . . . . Kinetic 262 | 34 132 83 6 7 Thermal 63 | . . 16 . 47 Explosive 13 | . . . . 13 Electromagnetic 40 | . . 26 6 8 Robot Hit Streak 12 | 6 12 12 11 7 Robot Miss Streak 7 | 2 4 7 1 2 Penetration Max . | . . . . . Secondary Targets 5 | . 3 . 1 1 Max Gunslinging Chain 1 | . 1 . 1 1 Shots Hit Robots 238 | 23 72 78 11 54 Core Hits 123 | 11 27 36 4 45 Critical Kills . | . . . . . Critical Parts Destroyed . | . . . . . Critical Strikes 2 | . . 1 . 1 Burn 1 | . . . . 1 Corrupt 1 | . . 1 . . Melee Attacks . | . . . . . Impact . | . . . . . Slashing . | . . . . . Piercing . | . . . . . Sneak Attacks . | . . . . . Combat Hostiles . | . . . . . Follow-up Attacks . | . . . . . Damage Inflicted 3769 | 185 585 987 157 1855 Guns 2283 | 185 585 849 157 507 Cannons 322 | . . . . 322 Explosions 1163 | . . 138 . 1025 Melee . | . . . . . Ramming 1 | . . . . 1 Kinetic 1425 | 185 585 486 89 80 Thermal 904 | . . 223 . 681 Explosive 1025 | . . . . 1025 Electromagnetic 414 | . . 278 68 68 Impact . | . . . . . Slashing . | . . . . . Piercing . | . . . . . Highest Corruption . | . . . . . Average Corruption . | . . . . . Corruption Purged . | . . . . . Corruption Blocked . | . . . . . Overload Shots . | . . . . . Overflow Damage 4 | . . . . 4 Projectiles . | . . . . . Explosions 4 | . . . . 4 Melee . | . . . . . Knockbacks . | . . . . . Impact . | . . . . . Kinetic . | . . . . . Secondary . | . . . . . Self-Inflicted Damage 194 | . . 15 . 179 Shots 10 | . . 1 . 9 Rammed 1 | . . . . 1 Targets Rammed 1 | . . . . 1 Kicked . | . . . . . Crushed . | . . . . . Highest Temperature 240 | . 38 240 44 143 Average Temperature 45 | . 14 48 27 50 Received Heat Transfer 1638 | . 111 321 54 1152 Effects 1 | . . 1 . . Interference 1 | . . 1 . . Siege Activations . | . . . . . Martial Activations . | . . . . . Shielding Activations . | . . . . . Robots Disrupted . | . . . . . Combat Hostiles . | . . . . . Robots Corrupted . | . . . . . Combat Hostiles . | . . . . . Parts Fried 2 | . . 1 1 . Impact Corruptions . | . . . . . Robots Melted . | . . . . . Combat Hostiles . | . . . . . Parts Melted . | . . . . . Heat Transferred 1708 | . . 275 . 1433 Parts Sabotaged . | . . . . . Parts Stolen . | . . . . . Parts Stripped . | . . . . . Power Chain Reactions 3 | . . 3 . . Alert | -11 -10 -9 -9 -8 ------- Run | Yrd Mat Mat Min Mat Maximum Alert Level 2 | . . . . 2 Low Security (%) 91 | 100 100 100 100 40 Level 1 7 | . . . . 51 Level 2 1 | . . . . 7 Level 3 . | . . . . . Level 4 . | . . . . . Level 5 . | . . . . . High Security . | . . . . . Max Security . | . . . . . Peak Influence 408 | 15 107 115 50 408 Initial 25 | . . . 25 7 Average 67 | 1 23 68 26 223 Influence Increases 1438 | 25 262 445 50 656 Destroy 0b10 Robot/C 820 | . 180 300 40 300 Destroy 0b10 Robot/NC 80 | 25 20 15 . 20 Destroy Leader 202 | . 48 94 10 50 Successful Hack 49 | . 14 13 . 22 Disable Machine 15 | . . . . 15 Anti-Garrison Action 150 | . . . . 150 Destroy Structure 47 | . . 8 . 39 Lose Combat Pursuer 75 | . . 15 . 60 Influence Decreases 1070 | 25 262 380 95 308 Entered New Map 53 | . . . 40 13 Time Decay 842 | 25 262 380 40 135 Lost Part 175 | . . . 15 160 Squads Dispatched 10 | . 1 4 . 5 Investigation 4 | . . 3 . 1 Extermination . | . . . . . Reinforcement 2 | . 1 1 . . Assault 2 | . . . . 2 Garrison 2 | . . . . 2 Intercept . | . . . . . Searches Triggered . | . . . . . Construction Impeded . | . . . . . Haulers Reinforced . | . . . . . Active Scanning Responses . | . . . . . Cargo Convoy Interrupts . | . . . . . Stealth | -11 -10 -9 -9 -8 --------- Run | Yrd Mat Mat Min Mat Distress Signals 2 | . . 2 . . Communications Jammed . | . . . . . Distress Signals . | . . . . . Times Spotted 74 | . 21 21 2 30 Peak Tracking Total 9 | . 3 9 2 7 Tactical Retreats 3 | . . 1 . 2 Traps | -11 -10 -9 -9 -8 ------- Run | Yrd Mat Mat Min Mat Traps Triggered 1 | . 1 . . . Indirectly . | . . . . . Trap Hack Attempts . | . . . . . Triggered . | . . . . . Disarmed . | . . . . . Reprogrammed . | . . . . . Reused . | . . . . . Traps Extracted . | . . . . . Installed . | . . . . . Triggered . | . . . . . Machines | -11 -10 -9 -9 -8 ---------- Run | Yrd Mat Mat Min Mat Machines Disabled 2 | . . . . 2 Max in Single Turn 1 | . . . . 1 Garrison Access 1 | . . . . 1 Machines Repaired . | . . . . . Machines Dismantled . | . . . . . Machines Sabotaged . | . . . . . Overloaded Fab Kills . | . . . . . Hacking | -11 -10 -9 -9 -8 --------- Run | Yrd Mat Mat Min Mat Machines Accessed 10 | . 3 5 . 2 Terminals 7 | . 2 3 . 2 Fabricators . | . . . . . Repair Stations 2 | . . 2 . . Recycling Units 1 | . 1 . . . Scanalyzers . | . . . . . Garrison Access . | . . . . . Total Hacks 30 | . 9 13 . 8 Successful 19 | . 7 8 . 4 Failed 11 | . 2 5 . 4 Catastrophic . | . . . . . Database Lockouts . | . . . . . Manual . | . . . . . Terminals 22 | . 6 8 . 8 Fabricators . | . . . . . Repair Stations 5 | . . 5 . . Recycling Units 3 | . 3 . . . Scanalyzers . | . . . . . Garrison Access . | . . . . . Terminal Hacks 13 | . 4 5 . 4 Robot Analysis 1 | . . 1 . . Branch Access Points 1 | . 1 . . . Emergency Access Points 3 | . . 2 . 1 Alert Level 1 | . . . . 1 Locate Traps 2 | . . . . 2 Dispatch Records 2 | . 1 1 . . Patrol Status 1 | . 1 . . . Hauler Manifests 2 | . 1 1 . . Fabricator Hacks . | . . . . . Repair Station Hacks 3 | . . 3 . . Scan Component 2 | . . 2 . . Repair 1 | . . 1 . . Recycling Unit Hacks 3 | . 3 . . . Report Inventory 1 | . 1 . . . Retrieve Components 2 | . 2 . . . Scanalyzer . | . . . . . Garrison Access Hacks . | . . . . . Unauthorized Hacks . | . . . . . Terminals . | . . . . . Fabricators . | . . . . . Repair Stations . | . . . . . Recycling Units . | . . . . . Scanalyzers . | . . . . . Garrison Access . | . . . . . Data Cores Recovered . | . . . . . Used . | . . . . . Hacking Detections 9 | . 3 4 . 2 Full Trace Events 4 | . 1 2 . 1 Feedback Events . | . . . . . Feedback Blocked . | . . . . . Robot Schematics Acquired . | . . . . . Robots Built . | . . . . . Authchips . | . . . . . Time . | . . . . . Total Robot Build Rating . | . . . . . Part Schematics Acquired . | . . . . . Parts Built . | . . . . . Authchips . | . . . . . Time . | . . . . . Total Part Build Rating . | . . . . . Parts Repaired 1 | . . 1 . . Time 26 | . . 26 . . Parts Recycled . | . . . . . Recycled Matter . | . . . . . Retrieved Matter . | . . . . . Retrieved Components 2 | . 2 . . . Parts Scanalyzed . | . . . . . Part Schematics Acquired . | . . . . . Parts Damaged . | . . . . . Bothacking | -11 -10 -9 -9 -8 ------------ Run | Yrd Mat Mat Min Mat Used RIF Installer . | . . . . . Robots Hacked . | . . . . . Non-combat . | . . . . . Combat . | . . . . . Robot Hacks Applied . | . . . . . Relay Couplers Released 3 | . . . . 3 Machine Destruction 3 | . . . . 3 Fabnet Peak Effective % . | . . . . . Robots Rewired . | . . . . . Allies Hacked . | . . . . . Hacks Repelled . | . . . . . Allies | -11 -10 -9 -9 -8 -------- Run | Yrd Mat Mat Min Mat Total Allies . | . . . . . Largest Group . | . . . . . Highest-Rated Group . | . . . . . Highest-Rated Ally . | . . . . . Total Orders . | . . . . . Ally Attacks . | . . . . . Total Damage . | . . . . . Kills . | . . . . . Allies Corrupted . | . . . . . Allies Melted . | . . . . . Intel | -11 -10 -9 -9 -8 ------- Run | Yrd Mat Mat Min Mat Active Infowar (turns) 2103 | 122 950 999 32 . Terrain 87 | 87 . . . . Seismic 2016 | 35 950 999 32 . Robot Analysis Total 1 | . . 1 . . Derelict Logs Recovered . | . . . . . Drone Launches . | . . . . . Drone Recoveries . | . . . . . Exploration | -11 -10 -9 -9 -8 ------------- Run | Yrd Mat Mat Min Mat Turns Passed 2615 | 206 950 999 84 376 Spaces Moved 1179 | 93 465 460 38 123 Core 7 | 5 . . . 2 Treads 1172 | 88 465 460 38 121 Legs . | . . . . . Wheels . | . . . . . Hover . | . . . . . Flight . | . . . . . Fastest Speed 50 | 50 160 160 160 160 Average Speed 161 | 154 160 160 160 180 Slowest Speed 450 | 160 160 160 160 450 Overloaded Moves . | . . . . . Propulsion Burnouts . | . . . . . Robots Hopped . | . . . . . Potential Cave-ins . | . . . . . Cave-ins Triggered . | . . . . . Exploration Rate (%) 28 | 7 65 42 13 15 Regions Visited 4 Branch Regions 1 Pre-discovered Areas . | . . . . . Known Exits Taken . | . . . . . Unknown Exits Taken 4 | 1 1 1 1 . Scrap Searched . | . . . . . Spaces Dug . | . . . . . Terrain Destroyed 51 | . . 6 . 45 Melee . | . . . . . Projectile 1 | . . . . 1 AOE 50 | . . 6 . 44 Terrain Rammed . | . . . . . Walls Destroyed . | . . . . . Machines Disabled . | . . . . . Actions | -11 -10 -9 -9 -8 --------- Run | Yrd Mat Mat Min Mat Total 1560 | 126 569 614 50 201 Wait 67 | . 18 44 4 1 Move 1175 | 92 464 459 37 123 Hop . | . . . . . Pick Up 47 | 9 9 20 1 8 Fast Attach 5 | 4 1 . . . Attach 22 | 3 1 5 1 12 Detach . | . . . . . Swap 14 | 1 2 9 . 2 Drop 26 | . 8 12 1 5 Fire 203 | 17 66 65 6 49 Melee . | . . . . . Ram . | . . . . . Kick . | . . . . . Crush 1 | . . . . 1 Escape Stasis . | . . . . . Rewire . | . . . . . Trap . | . . . . . Miscellaneous . | . . . . . Route ------- -11/Scrapyard -10/Materials (discovered 3 exits: *Mat x2 / Min) -9/Materials -9/Mines -8/Materials History --------- Turn | Location | Event 8 | -11/Scrapyard | Discovered new exit (range 15) 207 | -11/Scrapyard | Entered Materials 237 | -10/Materials | Identified exit to Mines 303 | -10/Materials | Build established: Mutant 548 | -10/Materials | Discovered new exit (range 3) 753 | -10/Materials | Discovered new exit (range 15) 1157 | -10/Materials | Entered another Materials area 1157 | -9/Materials | Evolved 2 slots: Propulsion x1, Utility x1 1512 | -9/Materials | Discovered new exit (range 12) 1537 | -9/Materials | Build established: Scavenger-Mutant 1656 | -9/Materials | Repaired Lgt. Treads 2156 | -9/Materials | Entered Mines 2225 | -9/Mines | Discovered new exit (range 6) 2232 | -9/Mines | Received a Rocket Launcher from a helpful Derelict 2240 | -9/Mines | Entered Materials 2240 | -8/Materials | Evolved 2 slots: Propulsion x1, Utility x1 2492 | -8/Materials | Core integrity fell below 50% 2546 | -8/Materials | Core integrity fell below 20% 2584 | -8/Materials | Lost 14 parts (1p6n2u5w) 2616 | -8/Materials | Destroyed by S-10 Pest with Light Assault Rifle Last Messages --------------- Momentum Engine. 02536_ R-06 Scavenger collects Lgt. Ion Engine. 02538_ R-06 Scavenger collects Terrain Scan Processor. 02541_ K-01 Serf collects debris. 02543_ Imp. Heat Sink destroyed. 02545_ K-01 Serf collects debris. 02553_ Beam Rifle destroyed. 02556_ K-01 Serf collects debris. 02556_ Critical hit (Burn: +37). 02558_ G-47 Trooper destroyed. 02559_ K-01 Serf collects debris. 02562_ G-47 Trooper destroyed. 02563_ K-01 Serf collects debris. 02564_ Acquired 5 matter. 02566_ K-01 Serf collects debris. 02585_ Slammed into R-06 Scavenger. 02588_ K-01 Serf collects debris. 02602_ EM Pulse Gun destroyed. 02605_ Imp. Targeting Computer destroyed. Map ----- +----------------------------------------------------+ | ??????????????+ +??????# # ####+####### ??? | | ??????????????# #??????# # ?? | | ??????????????# #??????# * + ?? | | ??????????????# #??????###### ?? | | ??????????????# ??????????#####+#########+?????? | | ??????????????# ??????????# #??????????? | | ??????????????# ??????????# """ """ #??????????? | | ??????????????? ??????????# """ """ #??????????? | | ????????????????????????????# """ """ #??????????? | | ????????????????????????????# #??????????? | | ????????????????????????????# "T" #??????????? | | ????????????????????????????# """ #??????????? | | ????????????????????????????# #??????????? | | ????????????????????????????#######+###??????????? | | ??????????????????????????????????# #????????????? | | ??????????????????????????????????# #????????????? | | ???????????????????????????#####??# #????????????? | | ???????????????????????????# ####+###??????????? | | ????????##+????????????????# # #??????????? | | ????????? ???????????????# # #??????????? | | ??????????? ??????????????# # #??????????? | | ???????????? ???????????## # #??????????? | | ?????????????? ????#??##?## # %*%| #??????????? | | ???????????#####+#### ## ### = # [%= #??????????? | | ???????????# #########+#####+###??????????? | | ???????????# s %@ [%%= %=g#????????????? | | ???????????# !! ###### =%! |!#????????????? | | ???????????# !! ###""" "" % ##???????????? | | ???????????# !! ## "Y G"% "#???????????? | | ???????????# ###""" " "#???????????? | | ???????????# #?# # % "#???????????? | | ???????????# ! #?#### T##??????????? | | ???????????# #????#^ " #??????????? | | ???????????##########????# " #??????????? | | ?????????????????????? "+% % " #??????????? | | ?????????????????????! # % # #??????????? | | ????????????????????? ?# # #??????????? | | ?????????????????????????# ! ! # #??????????? | | ?????????????????????????# ##### ###??????????? | | ?????????????????????????#" # # ##???????????? | | ?????????????????????????#%" ####? #????????????? | | ?????????????????????????#" ????? #????????????? | | ?????????????????????????# ##+?????+#????????????? | | ?????????????????????????# ??????????????????????? | | ?????????????????????????#???????????????????????? | | ?????????????????????????????????????????????????? | | ???????????????????????^^????????????????????????? | | ???????????????????????^^????????????????????????? | | ???????????????????????^^????????????????????????? | | ?????????????????????????????????????????????????? | +----------------------------------------------------+ Best States ------------- Heat Dissipation 45 Energy Generation 14 Energy Capacity 280 Matter Stores 450 Matter Capacity 450 Sight Range 16 Terrain Scan Range 16 Terrain Scan Density 10 Armor Coverage 150 Power Shielding 33 Evasion (%) 40 Targeting Accuracy 6 Recoil Reduction 4 Item Schematics ----------------- None Robot Schematics ------------------ None Fabricated ------------ Nothing Repaired ---------- Lgt. Treads | 5% | -9/Materials Alien Tech Used ----------------- None Achievements -------------- None Challenges ------------ None Game ------ Seed MultinovaConceptParser Manual? 0 Play Time 00:22:24 Cumulative 18.4 hours Start 2025.07.20 @ 08:22:14 End 2025.07.20 @ 08:41:19 Sessions 1 Manual Loads 0 Difficulty Rogue Special Mode None Game No. 56 Rogue 56 Adventurer 0 Explorer 0 Win Type - Total 0 Types 0/0/0/0/0/0/0/0/0/0 Lore% 19 Gallery% 20 Achievement% 17 Wizard Run 0 Options --------- Layout 1 ASCII 0 Keyboard 0 Movement Mouse Keybinds 0 Fullscreen 1 Font 32/SmallcapsGlow Map View 50x35 Zoom Use 0% Tactical HUD 1 Map Filters NONE Filters NONE Steam 1 RUN: 880cb304-452a-4d82-91f9-402f426bf79c